Cogmind - Beta 13 @@@ ROGUE MODE // 2024.07.09 @ 21:17:23 Player: Annull999 Result: Destroyed by as-22638 with Assembled Blade Performance ------------- Evolutions (0) 0 Regions Visited (4) 800 Robots Destroyed (9) 45 Value Destroyed (114) 114 Prototype IDs (0) 0 Alien Tech Used (0) 0 Bonus (14) 14 TOTAL SCORE: 973 Bonus ------- Follower Combat Kills 14 Cogmind --------- Core Integrity 0/250 Matter 288/300 Energy 100/100 System Corruption 0% Temperature Cool (0) Movement Core (700) Ox13 Location -9/Mines Parts ------- > --- POWER (1) -------- (None) > --- PROPULSION (2) --- (None) > --- UTILITY (2) ------ High-capacity Storage Unit > --- WEAPON (2) ------- (None) > --- INVENTORY (20) --- Improved Ion Engine Wheel Large Storage Unit Makeshift Cloaking Device Trap Extractor (0/4) Trap Extractor (0/4) EM Pulse Gun Grenade Launcher Peak State ------------ > --- POWER ------------ Improved Ion Engine > --- PROPULSION ------- Light Treads Light Treads > --- UTILITY ---------- Medium Storage Unit High-capacity Storage Unit > --- WEAPON ----------- Beam Cannon Light Cannon > --- INVENTORY -------- Improved Ion Engine Improved Ion Engine Wheel Wheel Wheel Trap Extractor Trap Extractor EM Pulse Gun Grenade Launcher [Rating: 9] Favorites ----------- Power Improved Ion Engine Engine Improved Ion Engine Propulsion Light Treads Treads Light Treads Wheel Wheel Utility High-capacity Storage Unit Storage High-capacity Storage Unit Weapon Light Cannon Energy Gun Medium Laser Energy Cannon Beam Cannon Ballistic Gun Assault Rifle Ballistic Cannon Light Cannon Build | -11 -10 -10 -10 -9 ------- Run | Yrd Mat Min Exi Min Slots Evolved . | . . . . . Power . | . . . . . Propulsion . | . . . . . Utility . | . . . . . Weapon . | . . . . . Parts Attached 14 | 6 4 . 1 3 Power 3 | 1 1 . . 1 Engine 3 | 1 1 . . 1 Core . | . . . . . Reactor . | . . . . . Propulsion 4 | 2 . . . 2 Treads 2 | 2 . . . . Leg . | . . . . . Wheel 2 | . . . . 2 Hover . | . . . . . Flight . | . . . . . Utility 3 | 1 1 . 1 . Device . | . . . . . Storage 3 | 1 1 . 1 . Processor . | . . . . . Hackware . | . . . . . Protection . | . . . . . Artifact . | . . . . . Weapon 4 | 2 2 . . . Energy Gun 1 | 1 . . . . Energy Cannon 1 | . 1 . . . Ballistic Gun 1 | 1 . . . . Ballistic Cannon 1 | . 1 . . . Launcher . | . . . . . Special Weapon . | . . . . . Impact Weapon . | . . . . . Slashing Weapon . | . . . . . Piercing Weapon . | . . . . . Special Melee Weapon . | . . . . . Unidentified Prototypes . | . . . . . Parts Lost 8 | . . . . 8 Power 2 | . . . . 2 Propulsion 4 | . . . . 4 Utility . | . . . . . Weapon 2 | . . . . 2 Highest Loss Streak 8 | . . . . 8 To Critical Strikes . | . . . . . Average Slot Usage (%) 84 | . 84 85 85 78 Engine 13 | . 14 14 14 12 Treads 27 | . 28 28 28 24 Storage 14 | . 14 14 14 14 Energy Cannon 13 | . 7 14 14 12 Ballistic Cannon 13 | . 8 14 14 13 Naked Turns . | . . . . . Heaviest Build 53 | 14 23 23 53 53 Greatest Support 40 | 40 40 40 40 40 Greatest Overweight (x) 13 | . . . 1 13 Average Overweight (x) . | . . . . 1 Largest Inventory Capacity 20 | 8 10 10 20 20 Average Capacity 16 | 7 8 10 19 20 Most Carried 11 | 7 10 10 11 11 Average Carried 9 | 4 7 9 10 10 Final Capacity 20 | 8 10 10 20 20 Final Carried 11 | 6 9 10 11 8 Class Distribution -------------------- 100% | Mutant Dominant Class ---------------- Mutant | -10/Materials Mutant | -10/Mines Mutant | -10/Exiles Mutant | -9/Mines Resources | -11 -10 -10 -10 -9 ----------- Run | Yrd Mat Min Exi Min Matter Collected 372 | 232 110 12 . 18 Remotely . | . . . . . Salvage Created 158 | . 87 50 . 21 Parts 11 | . 4 6 . 1 Haulers Intercepted . | . . . . . Recyclers Shooed . | . . . . . Parts Field Recycled . | . . . . . Retrieved Matter . | . . . . . Parts Self-Destructed . | . . . . . Prevented . | . . . . . Kills | -11 -10 -10 -10 -9 ------- Run | Yrd Mat Min Exi Min Combat Hostiles Destroyed 9 | . 4 3 . 2 Guns 3 | . 3 . . . Cannons 6 | . 1 3 . 2 Classes Destroyed 2 | . 2 . . . Swarmer 8 | . 3 3 . 2 Grunt 1 | . 1 . . . Best Kill Streak 3 | . 3 3 . 2 Combat Bots Only 3 | . 3 3 . 2 Max Kills in Single Turn 2 | . 1 2 . 1 Gunslinging . | . . . . . Exploded . | . . . . . Melee . | . . . . . Uniques/NPCs Destroyed . | . . . . . Combat | -11 -10 -10 -10 -9 -------- Run | Yrd Mat Min Exi Min Hostile Shots Fired 90 | . 44 4 . 42 Missed 31 | . 18 2 . 11 Damage Taken 1062 | . 224 14 . 824 Core 266 | . 42 . . 224 Absorbed by Shields . | . . . . . Core Remaining (%) 100 | 100 . . . . Volleys Fired 24 | . 14 3 . 7 Largest 2 | . 2 2 . 2 Hottest 95 | . 95 95 . 95 Shots Fired 45 | . 28 6 . 11 Gun 18 | . 18 . . . Cannon 27 | . 10 6 . 11 Launcher . | . . . . . Special . | . . . . . Kinetic 24 | . 14 3 . 7 Thermal 21 | . 14 3 . 4 Explosive . | . . . . . Electromagnetic . | . . . . . Robot Hit Streak 5 | . 3 2 . 5 Robot Miss Streak 3 | . 3 2 . 2 Penetration Max . | . . . . . Secondary Targets 1 | . 1 . . . Max Gunslinging Chain 1 | . 1 . . . Shots Hit Robots 21 | . 13 2 . 6 Core Hits 11 | . 4 3 . 4 Critical Kills . | . . . . . Critical Parts Destroyed . | . . . . . Critical Strikes . | . . . . . Melee Attacks . | . . . . . Impact . | . . . . . Slashing . | . . . . . Piercing . | . . . . . Sneak Attacks . | . . . . . Combat Hostiles . | . . . . . Follow-up Attacks . | . . . . . Damage Inflicted 351 | . 186 56 . 109 Guns 99 | . 99 . . . Cannons 252 | . 87 56 . 109 Explosions . | . . . . . Melee . | . . . . . Ramming . | . . . . . Kinetic 131 | . 72 20 . 39 Thermal 220 | . 114 36 . 70 Explosive . | . . . . . Electromagnetic . | . . . . . Impact . | . . . . . Slashing . | . . . . . Piercing . | . . . . . Highest Corruption . | . . . . . Average Corruption . | . . . . . Corruption Purged . | . . . . . Corruption Blocked . | . . . . . Overload Shots . | . . . . . Overflow Damage . | . . . . . Projectiles . | . . . . . Explosions . | . . . . . Melee . | . . . . . Knockbacks . | . . . . . Impact . | . . . . . Kinetic . | . . . . . Secondary . | . . . . . Self-Inflicted Damage . | . . . . . Shots . | . . . . . Rammed 1 | 1 . . . . Targets Rammed 1 | 1 . . . . Kicked . | . . . . . Crushed . | . . . . . Highest Temperature 138 | . 138 108 . 80 Average Temperature 48 | . 48 54 . 45 Received Heat Transfer 152 | . 12 . . 140 Siege Activations . | . . . . . Robots Corrupted . | . . . . . Combat Hostiles . | . . . . . Parts Fried . | . . . . . Impact Corruptions . | . . . . . Robots Melted . | . . . . . Combat Hostiles . | . . . . . Parts Melted . | . . . . . Heat Transferred 518 | . 296 74 . 148 Parts Sabotaged . | . . . . . Parts Stolen . | . . . . . Parts Stripped . | . . . . . Power Chain Reactions . | . . . . . Alert | -11 -10 -10 -10 -9 ------- Run | Yrd Mat Min Exi Min Peak Influence 141 | . 141 93 . 95 Initial 23 | . . 23 . . Average 76 | . 83 81 . 74 Maximum Alert Level . | . . . . . Low Security (%) 100 | 100 100 100 . 100 Level 1 . | . . . . . Level 2 . | . . . . . Level 3 . | . . . . . Level 4 . | . . . . . Level 5 . | . . . . . High Security . | . . . . . Max Security . | . . . . . Squads Dispatched 1 | . 1 . . . Investigation 1 | . 1 . . . Extermination . | . . . . . Reinforcement . | . . . . . Assault . | . . . . . Garrison . | . . . . . Intercept . | . . . . . Searches Triggered . | . . . . . Construction Impeded . | . . . . . Haulers Reinforced . | . . . . . Active Scanning Responses . | . . . . . Cargo Convoy Interrupts . | . . . . . Stealth | -11 -10 -10 -10 -9 --------- Run | Yrd Mat Min Exi Min Distress Signals . | . . . . . Communications Jammed . | . . . . . Distress Signals . | . . . . . Times Spotted 28 | . 7 3 . 18 Peak Tracking Total 8 | . 3 3 . 8 Tactical Retreats 3 | . 1 . . 2 Traps | -11 -10 -10 -10 -9 ------- Run | Yrd Mat Min Exi Min Traps Triggered 1 | . 1 . . . Indirectly . | . . . . . Trap Hack Attempts . | . . . . . Triggered . | . . . . . Disarmed . | . . . . . Reprogrammed . | . . . . . Reused . | . . . . . Traps Extracted . | . . . . . Installed . | . . . . . Triggered . | . . . . . Machines | -11 -10 -10 -10 -9 ---------- Run | Yrd Mat Min Exi Min Machines Disabled . | . . . . . Max in Single Turn . | . . . . . Machines Repaired . | . . . . . Machines Dismantled . | . . . . . Machines Sabotaged . | . . . . . Overloaded Fab Kills . | . . . . . Hacking | -11 -10 -10 -10 -9 --------- Run | Yrd Mat Min Exi Min Machines Accessed 3 | . 2 . 1 . Terminals 1 | . 1 . . . Fabricators . | . . . . . Repair Stations . | . . . . . Recycling Units 1 | . 1 . . . Scanalyzers . | . . . . . Garrison Access . | . . . . . Total Hacks 16 | . 7 . 9 . Successful 14 | . 5 . 9 . Failed 2 | . 2 . . . Catastrophic . | . . . . . Database Lockouts . | . . . . . Manual 8 | . 6 . 2 . Terminals 3 | . 3 . . . Fabricators . | . . . . . Repair Stations . | . . . . . Recycling Units 4 | . 4 . . . Scanalyzers . | . . . . . Garrison Access . | . . . . . Terminal Hacks 10 | . 1 . 9 . Record 9 | . . . 9 . Terminal Index 1 | . 1 . . . Fabricator Hacks . | . . . . . Repair Station Hacks . | . . . . . Recycling Unit Hacks 1 | . 1 . . . Report Inventory 1 | . 1 . . . Scanalyzer . | . . . . . Garrison Access Hacks . | . . . . . Unauthorized Hacks 3 | . 3 . . . Terminals 1 | . 1 . . . Botnet 1 | . 1 . . . Fabricators . | . . . . . Repair Stations . | . . . . . Recycling Units 2 | . 2 . . . Reject 1 | . 1 . . . Mask 1 | . 1 . . . Scanalyzers . | . . . . . Garrison Access . | . . . . . Data Cores Recovered . | . . . . . Used . | . . . . . Hacking Detections 1 | . 1 . . . Full Trace Events 1 | . 1 . . . Feedback Events . | . . . . . Feedback Blocked . | . . . . . Robot Schematics Acquired . | . . . . . Robots Built . | . . . . . Authchips . | . . . . . Time . | . . . . . Total Robot Build Rating . | . . . . . Part Schematics Acquired . | . . . . . Parts Built . | . . . . . Authchips . | . . . . . Time . | . . . . . Total Part Build Rating . | . . . . . Parts Repaired . | . . . . . Time . | . . . . . Parts Recycled . | . . . . . Recycled Matter . | . . . . . Retrieved Matter . | . . . . . Retrieved Components . | . . . . . Parts Scanalyzed . | . . . . . Part Schematics Acquired . | . . . . . Parts Damaged . | . . . . . Bothacking | -11 -10 -10 -10 -9 ------------ Run | Yrd Mat Min Exi Min Used RIF Installer . | . . . . . Robots Hacked . | . . . . . Non-combat . | . . . . . Combat . | . . . . . Robot Hacks Applied . | . . . . . Relay Couplers Released . | . . . . . Fabnet Peak Effective % . | . . . . . Robots Rewired 1 | . . . 1 . Allies Hacked . | . . . . . Hacks Repelled . | . . . . . Allies | -11 -10 -10 -10 -9 -------- Run | Yrd Mat Min Exi Min Total Allies 1 | . . . 1 . Largest Group 1 | . . . 1 1 Highest-Rated Group 21 | . . . 21 21 Highest-Rated Ally 21 | . . . 21 21 Total Orders . | . . . . . Ally Attacks 7 | . . . . 7 Total Damage 121 | . . . . 121 Kills 2 | . . . . 2 Allies Corrupted . | . . . . . Allies Melted . | . . . . . Intel | -11 -10 -10 -10 -9 ------- Run | Yrd Mat Min Exi Min Robot Analysis Total . | . . . . . Derelict Logs Recovered 2 | . . 1 . 1 Drone Launches . | . . . . . Drone Recoveries . | . . . . . Exploration | -11 -10 -10 -10 -9 ------------- Run | Yrd Mat Min Exi Min Turns Passed 4476 | 81 592 415 3179 209 Spaces Moved 1992 | 45 252 252 1361 82 Core 11 | 9 . . . 2 Treads 1969 | 36 252 252 1361 68 Legs . | . . . . . Wheels 12 | . . . . 12 Hover . | . . . . . Flight . | . . . . . Fastest Speed 50 | 50 160 160 160 110 Average Speed 211 | 138 160 160 231 233 Slowest Speed 700 | 160 160 160 240 700 Overloaded Moves . | . . . . . Propulsion Burnouts . | . . . . . Robots Hopped . | . . . . . Cave-ins Triggered . | . . . . . Exploration Rate (%) 42 | 4 32 54 92 30 Regions Visited 4 Branch Regions 3 Pre-discovered Areas . | . . . . . Known Exits Taken . | . . . . . Unknown Exits Taken 4 | 1 1 1 1 . Scrap Searched 1 | . . 1 . . Spaces Dug . | . . . . . Terrain Destroyed 1 | . . . . 1 Melee . | . . . . . Projectile 1 | . . . . 1 AOE . | . . . . . Terrain Rammed . | . . . . . Walls Destroyed . | . . . . . Machines Disabled . | . . . . . Actions | -11 -10 -10 -10 -9 --------- Run | Yrd Mat Min Exi Min Total 2223 | 63 417 258 1393 92 Wait 128 | . 125 3 . . Move 1988 | 44 251 251 1360 82 Hop . | . . . . . Pick Up 29 | 12 13 1 3 . Fast Attach . | . . . . . Attach 13 | 6 3 . 1 3 Detach . | . . . . . Swap 1 | . 1 . . . Drop 12 | . 10 . 2 . Fire 24 | . 14 3 . 7 Melee . | . . . . . Ram . | . . . . . Kick . | . . . . . Crush 1 | 1 . . . . Escape Stasis . | . . . . . Rewire 27 | . . . 27 . Trap . | . . . . . Miscellaneous . | . . . . . Route ------- -11/Scrapyard -10/Materials -10/Mines (discovered 3 exits: [*Mat x2] / *Exi) -10/Exiles (discovered 2 exits: [*Min x2]) -9/Mines (discovered 1 exit: [*Mat]) History --------- Turn | Location | Event 9 | -11/Scrapyard | Discovered new exit (range 15) 82 | -11/Scrapyard | Entered Materials 311 | -10/Materials | Build established: Mutant 546 | -10/Materials | Discovered new exit (range 15) 674 | -10/Materials | Entered Mines 706 | -10/Mines | Discovered new exit (range 8) 836 | -10/Mines | Learned location of 1 exit from Materials 840 | -10/Mines | Discovered new exit (range 9) 1079 | -10/Mines | Deemed a non-threat by the Exiles lab entrance 1081 | -10/Mines | Discovered new exit (range 5) 1089 | -10/Mines | Entered Exiles 1089 | -10/Exiles | Found Exiles lab destroyed 1115 | -10/Exiles | Discovered new exit (range 15) 1275 | -10/Exiles | Discovered new exit (range 10) 4268 | -10/Exiles | Entered Mines 4268 | -9/Mines | Accompanied by 1 ally 4327 | -9/Mines | Discovered new exit (range 9) 4346 | -9/Mines | Met a Derelict bent on vengeance 4417 | -9/Mines | Assembled infested the area 4422 | -9/Mines | Assisted by a Guerilla fighting off Assembled 4462 | -9/Mines | Core integrity fell below 50% 4473 | -9/Mines | Core integrity fell below 20% 4477 | -9/Mines | Destroyed by as-22638 with Assembled Blade Last Messages --------------- 04442_ as-50666 destroyed. 04442_ as-58087 destroyed. 04442_ Imp. Ion Engine destroyed. 04443_ D-53 Grenadier destroyed. 04445_ Beam Cannon destroyed. 04447_ K-01 Serf collects debris. 04450_ Lgt. Treads destroyed. 04452_ as-77686 destroyed. 04453_ The unstable cave ceiling collapses. 04453_ K-01 Serf collects debris. 04455_ D-53 Grenadier destroyed. 04456_ Imp. Ion Engine destroyed. 04456_ U-05 Engineer lays Concrete. 04457_ K-01 Serf collects debris. 04457_ U-05 Engineer lays Concrete. 04459_ U-05 Engineer destroyed. 04460_ The unstable cave ceiling collapses. 04462_ Wheel destroyed. 04466_ Lgt. Cannon destroyed. 04473_ K-01 Serf destroyed. Map ----- +----------------------------------------------------+ | | | | | | | | | | | | | ?????????????????????????????????????????????????? | | ?????????????????????????????????????????????????? | | ?????????????????????????????????????????????????? | | ???????????????????????????????##???????????????## | | ???????????????????#???????????# ??????????????## | | ??????????????????# ??????????# ??????????????# | | ?????????????????? ##???????# ??????????????# | | ???????# ???????? ###????## ###???????????# | | ???????? #??????? ?????? #??#######?## | | ????????? ##????? ???????? #??# #?# | | ?????????# #??## ????????# #??# ### | | ?????????# ## ?????????# #??# %% | | ??????#### ??????????# #### """ % | | ??????# ???????????# """ ##### | | ??????# ???????????# #### """ #???# | | ??????# #?# ???????????## #??#######???# | | ??????# #??# ???????????## ##???????????# | | ??????# ###??# ############# ##??????????# | | ??????# # #### k ] ##?????????# | | ?????## %#######@##### ##????????? | | ?#=%## % #???###a##??## ##???????? | | ?#$! #??## a ##??## ! < ##??????? | | ?# ### ! #### t #???#| #??????? | | ??????### !%| #???# #??????? | | ???????# =* ##??? #??????? | | ???????# % #???## ## #???? | | ???????## # ##????####?# ??? | | ????????#### #####???????????#] ##??? | | ???????????# ## ##????????????????### ##???? | | ??????????# ## % #????????????????????###????? | | ??????????# #???????????????????????????? | | ?????????#% #???????????????????????????? | | ???????? # ###???????????????????????????? | | ??????? #######???????????????????????????? | | ?????? %= ## ??????????????????????????????????? | | ?????? * #?# ??????????????????????????????????? | | ????????##??# ??????????????????????????????????? | | ????????????? ??????????????????????????????????? | | ????????????? ??????????????????????????????????? | | ?????????????????????????????????????????????????? | | ?????????????????????????????????????????????????? | | ?????????????????????????????????????????????????? | | ?????????????????????????????????????????????????? | | ?????????????????????????????????????????????????? | +----------------------------------------------------+ Best States ------------- Heat Dissipation 25 Energy Generation 12 Energy Capacity 265 Matter Stores 300 Matter Capacity 300 Sight Range 16 Terrain Scan Density 10 Evasion (%) 40 Recoil Reduction 2 Item Schematics ----------------- None Robot Schematics ------------------ None Fabricated ------------ Nothing Alien Tech Used ----------------- None Achievements -------------- A New Friend Challenges ------------ None Game ------ Seed AntigravHardenedCompressor Manual? 0 Play Time 00:20:22 Cumulative 4.4 hours Start 2024.07.09 @ 19:28:37 End 2024.07.09 @ 21:17:23 Sessions 3 Manual Loads 0 Difficulty Rogue Special Mode None Game No. 9 Rogue 9 Adventurer 0 Explorer 0 Win Type - Total 0 Types 0/0/0/0/0/0/0/0/0 Lore% 2 Gallery% 9 Achievement% 8 Wizard Run 0 Options --------- Layout 0 ASCII 1 Keyboard 0 Movement Mouse Keybinds 0 Fullscreen 2 Font 18/TerminusBold Map View 38x25 Zoom Use 16% Tactical HUD 1 Map Filters NONE Filters NONE Steam 1 RUN: 34bc718c-7849-48dd-9083-3610531ec6d2